[Event "IMSA Blitz Men 2019"]
[Site "Hengshui"]
[Date "2019.05.17"]
[Round "6.2"]
[White "Bu, Xiangzhi"]
[Black "Andreikin, Dmitry"]
[Result "1/2-1/2"]
[ECO "A17"]
[WhiteElo "2729"]
[BlackElo "2722"]
[Annotator "RC"]
[PlyCount "108"]
[EventDate "2019.05.17"]
[EventType "blitz"]
[EventCountry "CHN"]
[SourceTitle "playchess.com"]
[Source "ChessBase"]
[SourceQuality "1"]
[TimeControl "180+2"]

1. Nf3 {[%emt 0:00:00]} Nf6 {[%emt 0:00:00]} 2. c4 {[%emt 0:00:00]} e6 {[%emt 0:00:01]} 3. Nc3 {[%emt 0:00:02]} Bb4 {[%emt 0:00:04]} 4. Qc2 {[%emt 0:00:01]} c5 {[%emt 0:00:07]} 5. a3 {[%emt 0:00:01]} Ba5 {[%emt 0:00:01]} 6. e3 {[%emt 0:00:02]} O-O {[%emt 0:00:04]} 7. Be2 {[%emt 0:00:01]} Nc6 {[%emt 0:00:03]} 8. O-O {[%emt 0:00:02]} Bc7 {[%emt 0:00:09]} 9. Rd1 {[%emt 0:00:09]} h6 {[%emt 0:00:25]} 10. h3 {[%emt 0:00:08]} d5 {[%emt 0:00:06]} 11. cxd5 {[%emt 0:00:03]} exd5 {[%emt 0:00:08]} 12. d4 {[%emt 0:00:02]} c4 {[%emt 0:00:11]} 13. e4 {[%emt 0:00:27]} dxe4 {[%emt 0:00:07]} 14. Nxe4 {[%emt 0:00:02]} Nxe4 {[%emt 0:00:12]} 15. Qxe4 {[%emt 0:00:01]} Re8 {[%emt 0:00:01]} 16. Qc2 {[%emt 0:00:02]} Na5 {[%emt 0:00:07]} 17. Bxc4 {[%emt 0:00:23]} Nxc4 {[%emt 0:00:07]} 18. Qxc4 {[%emt 0:00:01]} Bf5 {[%emt 0:00:10]} 19. Be3 {[%emt 0:00:45]} Rc8 {[%emt 0:00:12]} 20. Qb5 {[%emt 0:00:06]} Be4 {[%emt 0:00:02]} 21. Ne5 {[%emt 0:00:08]} a6 {[%emt 0:00:20]} 22. Qb4 {[%emt 0:00:22]} Qd5 {[%emt 0:00:05]} 23. f3 {[%emt 0:00:07]} Bxf3 {[%emt 0:00:23]} 24. gxf3 {[%emt 0:00:26]} f6 {[%emt 0:00:01]} 25. Qc5 {[%emt 0:00:25]} Qxc5 {[%emt 0:00:11]} 26. dxc5 {[%emt 0:00:01]} Bxe5 {[%emt 0:00:02]} 27. Rab1 {[%emt 0:00:04]} Bxb2 {[%emt 0:00:05]} 28. Kf2 {[%emt 0:00:01]} Bxa3 {[%emt 0:00:03]} 29. Rd5 {[%emt 0:00:01]} Re5 {[%emt 0:00:11]} 30. Rxe5 {[%emt 0:00:03]} fxe5 {[%emt 0:00:01]} 31. Rxb7 {[%emt 0:00:02]} Bxc5 {[%emt 0:00:02]} 32. Bxc5 {[%emt 0:00:02]} Rxc5 {[%emt 0:00:01]} 33. Ra7 {[%emt 0:00:00]} a5 {[%emt 0:00:03]} 34. Ke3 {[%emt 0:00:01]} Kh7 {[%emt 0:00:02]} 35. Ra6 {[%emt 0:00:01]} h5 {[%emt 0:00:05]} 36. h4 {[%emt 0:00:06]} g6 {[%emt 0:00:03]} 37. Ra7+ {[%emt 0:00:02]} Kh6 {[%emt 0:00:02]} 38. Ra6 {[%emt 0:00:00]} Rb5 {[%emt 0:00:02]} 39. Ke4 {[%emt 0:00:02]} Rb4+ {[%emt 0:00:02]} 40. Kxe5 {[%emt 0:00:01]} Rxh4 {[%emt 0:00:05]} 41. f4 {[%emt 0:00:02]} Rh1 {[%emt 0:00:08]} 42. Rxa5 {[%emt 0:00:03]} Re1+ {[%emt 0:00:05]} 43. Kd4 {[%emt 0:00:01]} h4 {[%emt 0:00:03]} 44. Rg5 {[%emt 0:00:04]} Re2 {[%emt 0:00:01]} 45. Kd3 {[%emt 0:00:01]} Re6 {[%emt 0:00:02]} 46. Rg4 {[%emt 0:00:01]} Kh5 47. Rg5+ Kh6 48. Rg4 Kg7 {[%emt 0:00:06]} 49. Rxh4 {[%emt 0:00:02]} Kf6 {[%emt 0:00:01]} 50. Rh8 {[%emt 0:00:04]} Kf5 {[%emt 0:00:02]} 51. Rf8+ {[%emt 0:00:01]} Rf6 {[%emt 0:00:01]} 52. Rxf6+ {[%emt 0:00:01]} Kxf6 {[%emt 0:00:01]} 53. Ke4 {[%emt 0:00:00]} g5 {[%emt 0:00:01]} 54. fxg5+ {[%emt 0:00:01]} Kxg5 1/2-1/2

[Event "IMSA Blitz Men 2019"]
[Site "Hengshui"]
[Date "2019.05.17"]
[Round "6.2"]
[White "Vidit, Santosh Gujrathi"]
[Black "Leko, Peter"]
[Result "1/2-1/2"]
[ECO "D41"]
[WhiteElo "2707"]
[BlackElo "2674"]
[Annotator "RC"]
[PlyCount "98"]
[EventDate "2019.05.17"]
[EventType "blitz"]
[EventCountry "CHN"]
[SourceTitle "playchess.com"]
[Source "ChessBase"]
[SourceQuality "1"]
[TimeControl "180+2"]

1. d4 {[%emt 0:00:00]} Nf6 {[%emt 0:00:00]} 2. c4 {[%emt 0:00:00]} e6 {[%emt 0:00:00]} 3. Nf3 {[%emt 0:00:02]} d5 {[%emt 0:00:01]} 4. Nc3 {[%emt 0:00:01]} c5 {[%emt 0:00:01]} 5. cxd5 {[%emt 0:00:03]} Nxd5 {[%emt 0:00:01]} 6. e4 {[%emt 0:00:02]} Nxc3 {[%emt 0:00:01]} 7. bxc3 {[%emt 0:00:01]} cxd4 {[%emt 0:00:01]} 8. cxd4 {[%emt 0:00:02]} Bb4+ {[%emt 0:00:01]} 9. Bd2 {[%emt 0:00:01]} Bxd2+ {[%emt 0:00:01]} 10. Qxd2 {[%emt 0:00:01]} O-O {[%emt 0:00:01]} 11. Bc4 {[%emt 0:00:13]} Nd7 {[%emt 0:00:01]} 12. O-O {[%emt 0:00:03]} b6 {[%emt 0:00:02]} 13. Rfe1 {[%emt 0:00:04]} Bb7 {[%emt 0:00:02]} 14. Rad1 {[%emt 0:00:01]} Rc8 {[%emt 0:00:01]} 15. Bb3 {[%emt 0:00:01]} h6 {[%emt 0:00:05]} 16. h3 {[%emt 0:00:05]} Nf6 {[%emt 0:00:09]} 17. Qf4 {[%emt 0:00:07]} Qc7 {[%emt 0:00:12]} 18. Ne5 {[%emt 0:00:17]} Qd6 {[%emt 0:00:56]} 19. Rd3 {[%emt 0:00:17]} Rc7 {[%emt 0:00:28]} 20. f3 {[%emt 0:00:35]} Nd7 {[%emt 0:00:11]} 21. Ng6 {[%emt 0:00:04]} Qxf4 {[%emt 0:00:03]} 22. Nxf4 {[%emt 0:00:01]} Re8 {[%emt 0:00:05]} 23. Ba4 {[%emt 0:00:12]} Rd8 {[%emt 0:00:05]} 24. Red1 {[%emt 0:00:07]} Nb8 {[%emt 0:00:12]} 25. d5 {[%emt 0:00:20]} exd5 {[%emt 0:00:06]} 26. Nxd5 {[%emt 0:00:02]} Bxd5 {[%emt 0:00:02]} 27. Rxd5 {[%emt 0:00:03]} Rxd5 {[%emt 0:00:03]} 28. Rxd5 {[%emt 0:00:01]} Na6 {[%emt 0:00:08]} 29. Rd8+ {[%emt 0:00:12]} Kh7 {[%emt 0:00:01]} 30. Bb3 {[%emt 0:00:02]} Nc5 {[%emt 0:00:04]} 31. Bd5 {[%emt 0:00:11]} g5 {[%emt 0:00:05]} 32. Kh2 {[%emt 0:00:05]} Kg7 {[%emt 0:00:02]} 33. Kg3 {[%emt 0:00:06]} Rd7 {[%emt 0:00:17]} 34. Rc8 {[%emt 0:00:29]} Nd3 {[%emt 0:00:03]} 35. h4 {[%emt 0:00:07]} Nf4 {[%emt 0:00:02]} 36. hxg5 {[%emt 0:00:01]} hxg5 {[%emt 0:00:01]} 37. Bb3 {[%emt 0:00:04]} Rd2 {[%emt 0:00:05]} 38. Rc2 {[%emt 0:00:02]} Rxc2 {[%emt 0:00:12]} 39. Bxc2 {[%emt 0:00:00]} Kf6 {[%emt 0:00:02]} 40. Kf2 {[%emt 0:00:04]} Ke5 {[%emt 0:00:03]} 41. g3 {[%emt 0:00:01]} Ne6 {[%emt 0:00:02]} 42. Ke3 {[%emt 0:00:01]} f6 {[%emt 0:00:11]} 43. Bb3 {[%emt 0:00:03]} Nc5 {[%emt 0:00:07]} 44. f4+ {[%emt 0:00:02]} gxf4+ {[%emt 0:00:01]} 45. gxf4+ {[%emt 0:00:00]} Kd6 {[%emt 0:00:01]} 46. Bc2 {[%emt 0:00:04]} Ne6 {[%emt 0:00:02]} 47. Bb3 {[%emt 0:00:01]} Nc5 {[%emt 0:00:00]} 48. Bc2 {[%emt 0:00:01]} Ne6 {[%emt 0:00:01]} 49. Bb3 {[%emt 0:00:01]} Nc5 1/2-1/2

[Event "IMSA Blitz Men 2019"]
[Site "Hengshui"]
[Date "2019.05.17"]
[Round "6.2"]
[White "Ponomariov, Ruslan"]
[Black "Fedoseev, Vladimir"]
[Result "0-1"]
[ECO "B90"]
[WhiteElo "2675"]
[BlackElo "2683"]
[Annotator "RC"]
[PlyCount "64"]
[EventDate "2019.05.17"]
[EventType "blitz"]
[EventCountry "CHN"]
[SourceTitle "playchess.com"]
[Source "ChessBase"]
[SourceQuality "1"]
[TimeControl "180+2"]

1. e4 {[%emt 0:00:00]} c5 {[%emt 0:00:00]} 2. Nf3 {[%emt 0:00:00]} d6 {[%emt 0:00:00]} 3. d4 {[%emt 0:00:00]} cxd4 {[%emt 0:00:01]} 4. Nxd4 {[%emt 0:00:01]} Nf6 {[%emt 0:00:01]} 5. Nc3 a6 6. h3 {[%emt 0:00:02]} b5 {[%emt 0:00:04]} 7. a4 {[%emt 0:00:12]} b4 {[%emt 0:00:13]} 8. Nd5 {[%emt 0:00:01]} e6 {[%emt 0:00:02]} 9. Nxf6+ {[%emt 0:00:15]} Qxf6 {[%emt 0:00:02]} 10. g3 {[%emt 0:00:21]} e5 {[%emt 0:00:23]} 11. Nb3 {[%emt 0:00:06]} Be6 {[%emt 0:00:05]} 12. Bg2 {[%emt 0:00:05]} Nc6 {[%emt 0:00:04]} 13. O-O {[%emt 0:00:04]} Qd8 {[%emt 0:00:01]} 14. Be3 {[%emt 0:00:27]} Be7 {[%emt 0:00:01]} 15. f4 {[%emt 0:00:03]} O-O {[%emt 0:00:06]} 16. Rf2 {[%emt 0:00:15]} f6 {[%emt 0:00:14]} 17. Rd2 {[%emt 0:00:15]} Qc7 {[%emt 0:00:05]} 18. Qe2 {[%emt 0:00:11]} Na5 {[%emt 0:00:20]} 19. Nxa5 {[%emt 0:00:03]} Qxa5 {[%emt 0:00:01]} 20. Qf2 {[%emt 0:00:08]} Rab8 {[%emt 0:00:11]} 21. f5 {[%emt 0:00:07]} Bf7 {[%emt 0:00:01]} 22. g4 {[%emt 0:00:01]} b3 {[%emt 0:00:05]} 23. c3 {[%emt 0:00:02]} Rfc8 {[%emt 0:00:02]} 24. Bf1 {[%emt 0:00:06]} d5 {[%emt 0:00:17]} 25. exd5 {[%emt 0:00:06]} Bxd5 {[%emt 0:00:01]} 26. Rad1 {[%emt 0:00:07]} Bc6 {[%emt 0:00:08]} 27. Bc4+ {[%emt 0:00:05]} Kh8 {[%emt 0:00:01]} 28. Be6 {[%emt 0:00:08]} Rd8 {[%emt 0:00:07]} 29. Rxd8+ {[%emt 0:00:09]} Rxd8 {[%emt 0:00:03]} 30. Rxd8+ {[%emt 0:00:07]} Qxd8 {[%emt 0:00:02]} 31. Bxb3 {[%emt 0:00:02]} Qd3 {[%emt 0:00:02]} 32. Bc5 {[%emt 0:00:30]} Qxh3 {[%emt 0:00:06]} 0-1

[Event "IMSA Blitz Men 2019"]
[Site "Hengshui"]
[Date "2019.05.17"]
[Round "6.2"]
[White "Cheparinov, Ivan"]
[Black "Jones, Gawain C B"]
[Result "0-1"]
[ECO "C45"]
[WhiteElo "2667"]
[BlackElo "2702"]
[Annotator "RC"]
[PlyCount "288"]
[EventDate "2019.05.17"]
[EventType "blitz"]
[EventCountry "CHN"]
[SourceTitle "playchess.com"]
[Source "ChessBase"]
[SourceQuality "1"]
[TimeControl "180+2"]

1. e4 {[%emt 0:00:00]} e5 {[%emt 0:00:00]} 2. Nf3 {[%emt 0:00:00]} Nc6 {[%emt 0:00:01]} 3. d4 {[%emt 0:00:02]} exd4 {[%emt 0:00:01]} 4. Nxd4 {[%emt 0:00:01]} Nf6 {[%emt 0:00:02]} 5. Nxc6 {[%emt 0:00:02]} bxc6 {[%emt 0:00:01]} 6. e5 {[%emt 0:00:01]} Qe7 {[%emt 0:00:01]} 7. Qe2 {[%emt 0:00:02]} Nd5 {[%emt 0:00:01]} 8. h4 {[%emt 0:00:02]} f6 {[%emt 0:00:05]} 9. c4 {[%emt 0:00:10]} Ba6 {[%emt 0:00:02]} 10. Rh3 {[%emt 0:00:04]} Nb6 {[%emt 0:00:19]} 11. exf6 {[%emt 0:00:06]} Qxe2+ {[%emt 0:00:02]} 12. Bxe2 {[%emt 0:00:02]} Bxc4 {[%emt 0:00:04]} 13. Re3+ {[%emt 0:00:03]} Kf7 {[%emt 0:00:02]} 14. fxg7 {[%emt 0:00:11]} Bxg7 {[%emt 0:00:05]} 15. Bh5+ {[%emt 0:00:10]} Kf8 {[%emt 0:00:01]} 16. Nd2 {[%emt 0:00:10]} Bd5 {[%emt 0:00:32]} 17. Ne4 {[%emt 0:00:03]} h6 {[%emt 0:00:02]} 18. Nc3 {[%emt 0:00:35]} Bxg2 {[%emt 0:00:29]} 19. Rg3 {[%emt 0:00:02]} Bd5 {[%emt 0:00:05]} 20. Bf4 {[%emt 0:00:29]} Bf7 {[%emt 0:00:13]} 21. Bxf7 {[%emt 0:00:16]} Kxf7 {[%emt 0:00:01]} 22. Bxc7 {[%emt 0:00:01]} Rae8+ {[%emt 0:00:12]} 23. Kf1 {[%emt 0:00:02]} Nc4 {[%emt 0:00:03]} 24. Rd1 {[%emt 0:00:07]} d5 {[%emt 0:00:02]} 25. b3 {[%emt 0:00:03]} Ne5 {[%emt 0:00:08]} 26. Ne2 {[%emt 0:00:03]} Re7 {[%emt 0:00:04]} 27. Bd6 {[%emt 0:00:06]} Re6 {[%emt 0:00:00]} 28. Bc5 {[%emt 0:00:01]} Nd7 {[%emt 0:00:08]} 29. Bxa7 {[%emt 0:00:07]} Rhe8 {[%emt 0:00:26]} 30. Nd4 {[%emt 0:00:12]} Rf6 {[%emt 0:00:01]} 31. Nf3 {[%emt 0:00:12]} Rf4 {[%emt 0:00:10]} 32. Be3 {[%emt 0:00:02]} Rfe4 {[%emt 0:00:04]} 33. Rc1 {[%emt 0:00:03]} d4 {[%emt 0:00:08]} 34. Rxg7+ {[%emt 0:00:12]} Kxg7 {[%emt 0:00:01]} 35. Bxd4+ {[%emt 0:00:02]} Kf7 {[%emt 0:00:01]} 36. Rxc6 {[%emt 0:00:01]} Rf4 {[%emt 0:00:01]} 37. Rc3 {[%emt 0:00:09]} Ree4 {[%emt 0:00:02]} 38. Rd3 {[%emt 0:00:04]} Rf5 {[%emt 0:00:10]} 39. Be3 {[%emt 0:00:04]} Nf6 {[%emt 0:00:11]} 40. Bxh6 {[%emt 0:00:02]} Kg6 {[%emt 0:00:02]} 41. Bd2 {[%emt 0:00:02]} Ng4 {[%emt 0:00:02]} 42. Kg2 {[%emt 0:00:06]} Re2 {[%emt 0:00:01]} 43. Kg3 {[%emt 0:00:01]} Nxf2 {[%emt 0:00:02]} 44. Rd6+ {[%emt 0:00:02]} Kf7 {[%emt 0:00:06]} 45. Rd4 {[%emt 0:00:07]} Ne4+ {[%emt 0:00:01]} 46. Kg4 {[%emt 0:00:01]} Nxd2 {[%emt 0:00:06]} 47. Kxf5 {[%emt 0:00:04]} Nxf3 {[%emt 0:00:01]} 48. Rd7+ {[%emt 0:00:02]} Ke8 {[%emt 0:00:01]} 49. Rh7 {[%emt 0:00:02]} Rxa2 {[%emt 0:00:01]} 50. h5 {[%emt 0:00:02]} Nd4+ {[%emt 0:00:06]} 51. Ke5 {[%emt 0:00:02]} Nxb3 {[%emt 0:00:01]} 52. h6 {[%emt 0:00:03]} Ra5+ {[%emt 0:00:03]} 53. Kf6 {[%emt 0:00:02]} Ra6+ {[%emt 0:00:02]} 54. Kg5 {[%emt 0:00:03]} Nd4 {[%emt 0:00:05]} 55. Rb7 {[%emt 0:00:02]} Ne6+ {[%emt 0:00:01]} 56. Kg4 {[%emt 0:00:02]} Nf8 {[%emt 0:00:02]} 57. Kg5 {[%emt 0:00:02]} Ra5+ {[%emt 0:00:01]} 58. Kg4 {[%emt 0:00:01]} Ra6 {[%emt 0:00:02]} 59. Kg5 {[%emt 0:00:01]} Rg6+ {[%emt 0:00:02]} 60. Kh5 {[%emt 0:00:01]} Rg1 {[%emt 0:00:01]} 61. Ra7 {[%emt 0:00:03]} Rh1+ {[%emt 0:00:02]} 62. Kg5 {[%emt 0:00:01]} Rg1+ {[%emt 0:00:02]} 63. Kh5 {[%emt 0:00:01]} Rh1+ {[%emt 0:00:04]} 64. Kg5 {[%emt 0:00:01]} Nd7 {[%emt 0:00:01]} 65. Kg6 {[%emt 0:00:03]} Rg1+ {[%emt 0:00:04]} 66. Kf5 {[%emt 0:00:01]} Nf8 {[%emt 0:00:04]} 67. Rg7 {[%emt 0:00:03]} Rh1 {[%emt 0:00:03]} 68. Ra7 {[%emt 0:00:07]} Rxh6 {[%emt 0:00:01]} 69. Ke4 {[%emt 0:00:01]} Nd7 {[%emt 0:00:01]} 70. Kd4 {[%emt 0:00:02]} Ke7 {[%emt 0:00:00]} 71. Ra1 {[%emt 0:00:01]} Rh5 {[%emt 0:00:01]} 72. Re1+ {[%emt 0:00:01]} Kd6 {[%emt 0:00:01]} 73. Re8 {[%emt 0:00:02]} Nf6 {[%emt 0:00:01]} 74. Rd8+ {[%emt 0:00:01]} Ke6 {[%emt 0:00:01]} 75. Ke3 {[%emt 0:00:03]} Ke5 {[%emt 0:00:01]} 76. Ra8 {[%emt 0:00:03]} Rh3+ {[%emt 0:00:01]} 77. Ke2 {[%emt 0:00:01]} Kf4 {[%emt 0:00:03]} 78. Rf8 {[%emt 0:00:02]} Kf5 {[%emt 0:00:02]} 79. Kd2 {[%emt 0:00:02]} Ke5 {[%emt 0:00:02]} 80. Ke2 {[%emt 0:00:03]} Ra3 {[%emt 0:00:04]} 81. Kd2 {[%emt 0:00:03]} Nd5 {[%emt 0:00:03]} 82. Ke2 {[%emt 0:00:02]} Nf4+ {[%emt 0:00:02]} 83. Kf2 {[%emt 0:00:01]} Nd3+ {[%emt 0:00:06]} 84. Ke2 {[%emt 0:00:03]} Ke4 {[%emt 0:00:01]} 85. Re8+ {[%emt 0:00:01]} Ne5 {[%emt 0:00:01]} 86. Kd2 {[%emt 0:00:01]} Rd3+ {[%emt 0:00:05]} 87. Ke2 {[%emt 0:00:02]} Rh3 {[%emt 0:00:03]} 88. Kd2 {[%emt 0:00:02]} Rg3 {[%emt 0:00:02]} 89. Kc2 {[%emt 0:00:02]} Kd4 {[%emt 0:00:01]} 90. Rd8+ {[%emt 0:00:02]} Ke3 {[%emt 0:00:01]} 91. Re8 {[%emt 0:00:02]} Ke4 {[%emt 0:00:02]} 92. Kd2 {[%emt 0:00:02]} Ra3 {[%emt 0:00:03]} 93. Kc2 {[%emt 0:00:02]} Kd4 {[%emt 0:00:01]} 94. Rd8+ {[%emt 0:00:03]} Ke3 {[%emt 0:00:01]} 95. Re8 {[%emt 0:00:02]} Ra5 {[%emt 0:00:00]} 96. Kc3 {[%emt 0:00:04]} Rc5+ {[%emt 0:00:03]} 97. Kb4 {[%emt 0:00:00]} Rd5 {[%emt 0:00:01]} 98. Kc3 {[%emt 0:00:02]} Rd3+ {[%emt 0:00:03]} 99. Kb4 {[%emt 0:00:01]} Ke4 {[%emt 0:00:02]} 100. Rh8 {[%emt 0:00:04]} Rd7 {[%emt 0:00:06]} 101. Rh4+ {[%emt 0:00:02]} Kd3 {[%emt 0:00:02]} 102. Rh3+ {[%emt 0:00:01]} Kd4 {[%emt 0:00:00]} 103. Rh4+ {[%emt 0:00:01]} Ke3 {[%emt 0:00:03]} 104. Rh3+ {[%emt 0:00:01]} Nf3 {[%emt 0:00:01]} 105. Rh8 {[%emt 0:00:02]} Kd4 {[%emt 0:00:01]} 106. Kb5 {[%emt 0:00:04]} Ne5 {[%emt 0:00:03]} 107. Kb6 {[%emt 0:00:03]} Nc4+ {[%emt 0:00:01]} 108. Kc6 {[%emt 0:00:01]} Rd6+ {[%emt 0:00:01]} 109. Kc7 {[%emt 0:00:01]} Rg6 {[%emt 0:00:02]} 110. Rh1 {[%emt 0:00:03]} Kd5 {[%emt 0:00:01]} 111. Rd1+ {[%emt 0:00:02]} Kc5 {[%emt 0:00:01]} 112. Kd7 {[%emt 0:00:01]} Ne3 {[%emt 0:00:02]} 113. Rc1+ {[%emt 0:00:03]} Kd5 {[%emt 0:00:01]} 114. Ke7 {[%emt 0:00:01]} Ng4 {[%emt 0:00:05]} 115. Rd1+ {[%emt 0:00:02]} Ke5 {[%emt 0:00:01]} 116. Re1+ {[%emt 0:00:01]} Kf5 {[%emt 0:00:01]} 117. Rf1+ {[%emt 0:00:01]} Kg5 {[%emt 0:00:01]} 118. Kd7 {[%emt 0:00:02]} Ra6 {[%emt 0:00:03]} 119. Kc7 {[%emt 0:00:01]} Nf6 {[%emt 0:00:01]} 120. Rg1+ {[%emt 0:00:03]} Kf5 121. Rf1+ {[%emt 0:00:01]} Ke6 {[%emt 0:00:02]} 122. Re1+ {[%emt 0:00:02]} Kf7 {[%emt 0:00:02]} 123. Kb7 {[%emt 0:00:02]} Rd6 {[%emt 0:00:02]} 124. Kc7 {[%emt 0:00:01]} Ra6 {[%emt 0:00:07]} 125. Kb7 {[%emt 0:00:01]} Ra4 {[%emt 0:00:01]} 126. Kc6 {[%emt 0:00:02]} Ne4 {[%emt 0:00:01]} 127. Kb5 {[%emt 0:00:03]} Nc3+ {[%emt 0:00:01]} 128. Kc5 {[%emt 0:00:01]} Kf6 {[%emt 0:00:03]} 129. Re3 {[%emt 0:00:02]} Ne4+ {[%emt 0:00:06]} 130. Kd5 {[%emt 0:00:03]} Ng5 {[%emt 0:00:01]} 131. Kc5 {[%emt 0:00:02]} Ne6+ {[%emt 0:00:02]} 132. Kb5 {[%emt 0:00:02]} Rd4 {[%emt 0:00:03]} 133. Re1 {[%emt 0:00:01]} Ke7 {[%emt 0:00:02]} 134. Rh1 {[%emt 0:00:05]} Kd7 {[%emt 0:00:00]} 135. Rh7+ {[%emt 0:00:03]} Kd6 {[%emt 0:00:01]} 136. Rh6 {[%emt 0:00:00]} Rg4 {[%emt 0:00:02]} 137. Rf6 {[%emt 0:00:05]} Ke5 {[%emt 0:00:06]} 138. Rf1 {[%emt 0:00:02]} Kd5 {[%emt 0:00:01]} 139. Rd1+ {[%emt 0:00:04]} Nd4+ {[%emt 0:00:01]} 140. Kb4 {[%emt 0:00:02]} Rg3 {[%emt 0:00:01]} 141. Rb1 {[%emt 0:00:03]} Nc2+ {[%emt 0:00:04]} 142. Ka5 {[%emt 0:00:02]} Kc5 {[%emt 0:00:04]} 143. Rb5+ {[%emt 0:00:02]} Kc4 {[%emt 0:00:01]} 144. Rh5 {[%emt 0:00:02]} Rg6 {[%emt 0:00:02]} 0-1

[Event "IMSA Blitz Men 2019"]
[Site "Hengshui"]
[Date "2019.05.18"]
[Round "7.1"]
[White "Cheparinov, Ivan"]
[Black "Le, Quang Liem"]
[Result "0-1"]
[ECO "A85"]
[WhiteElo "2667"]
[BlackElo "2704"]
[Annotator "RC"]
[PlyCount "54"]
[EventDate "2019.05.17"]
[EventType "blitz"]
[EventCountry "CHN"]
[SourceTitle "playchess.com"]
[Source "ChessBase"]
[SourceQuality "1"]
[TimeControl "180+2"]

1. d4 {[%emt 0:00:00]} f5 {[%emt 0:00:00]} 2. c4 {[%emt 0:00:02]} Nf6 {[%emt 0:00:01]} 3. Nc3 {[%emt 0:00:01]} g6 {[%emt 0:00:01]} 4. h4 {[%emt 0:00:02]} h6 {[%emt 0:00:13]} 5. Nh3 {[%emt 0:00:18]} d6 {[%emt 0:00:04]} 6. Nf4 {[%emt 0:00:05]} Rg8 {[%emt 0:00:01]} 7. d5 {[%emt 0:00:30]} Na6 {[%emt 0:00:02]} 8. g3 {[%emt 0:00:03]} e5 {[%emt 0:00:08]} 9. dxe6 {[%emt 0:00:02]} Nc5 {[%emt 0:00:03]} 10. Bg2 {[%emt 0:00:01]} c6 {[%emt 0:00:01]} 11. b3 {[%emt 0:00:14]} Nxe6 {[%emt 0:00:07]} 12. Nxe6 {[%emt 0:00:05]} Bxe6 {[%emt 0:00:01]} 13. Bb2 {[%emt 0:00:02]} Bg7 {[%emt 0:00:08]} 14. Qd2 {[%emt 0:00:02]} Qe7 {[%emt 0:00:17]} 15. O-O-O {[%emt 0:00:29]} O-O-O {[%emt 0:00:02]} 16. Qc2 {[%emt 0:00:04]} Kb8 {[%emt 0:00:12]} 17. Kb1 {[%emt 0:00:01]} Rd7 {[%emt 0:00:13]} 18. Rhe1 {[%emt 0:00:01]} Qf7 {[%emt 0:00:03]} 19. e4 {[%emt 0:00:12]} Rgd8 {[%emt 0:00:02]} 20. Ka1 {[%emt 0:00:08]} a6 {[%emt 0:00:25]} 21. Nd5 {[%emt 0:00:09]} Nxe4 {[%emt 0:00:07]} 22. Nf4 {[%emt 0:00:07]} Re7 {[%emt 0:00:16]} 23. Nxe6 {[%emt 0:00:34]} Rxe6 {[%emt 0:00:04]} 24. Bxg7 {[%emt 0:00:18]} Qxg7+ 25. Qb2 Qxb2+ {[%emt 0:00:09]} 26. Kxb2 {[%emt 0:00:01]} Rde8 {[%emt 0:00:01]} 27. Re2 {[%emt 0:00:03]} Nc3 {[%emt 0:00:06]} 0-1

[Event "IMSA Blitz Men 2019"]
[Site "Hengshui"]
[Date "2019.05.18"]
[Round "8.1"]
[White "Jones, Gawain C B"]
[Black "Dominguez Perez, Leinier"]
[Result "0-1"]
[ECO "C54"]
[WhiteElo "2702"]
[BlackElo "2750"]
[Annotator "RC"]
[PlyCount "84"]
[EventDate "2019.05.17"]
[EventType "blitz"]
[EventCountry "CHN"]
[SourceTitle "playchess.com"]
[Source "ChessBase"]
[SourceQuality "1"]
[TimeControl "180+2"]

1. e4 {[%emt 0:00:01]} e5 {[%emt 0:00:00]} 2. d4 {[%emt 0:00:01]} exd4 {[%emt 0:00:00]} 3. Nf3 {[%emt 0:00:01]} Nc6 {[%emt 0:00:01]} 4. Bc4 {[%emt 0:00:01]} Bc5 {[%emt 0:00:02]} 5. c3 {[%emt 0:00:06]} Nf6 {[%emt 0:00:01]} 6. cxd4 {[%emt 0:00:06]} Bb4+ {[%emt 0:00:01]} 7. Bd2 {[%emt 0:00:00]} Nxe4 {[%emt 0:00:06]} 8. Bxb4 {[%emt 0:00:01]} Nxb4 {[%emt 0:00:01]} 9. Bxf7+ {[%emt 0:00:02]} Kxf7 {[%emt 0:00:01]} 10. Qb3+ {[%emt 0:00:01]} Kf8 {[%emt 0:00:01]} 11. Qxb4+ Qe7 12. Qxe7+ {[%emt 0:00:03]} Kxe7 {[%emt 0:00:02]} 13. O-O {[%emt 0:00:02]} Nf6 {[%emt 0:00:06]} 14. Nc3 {[%emt 0:00:07]} d6 {[%emt 0:00:32]} 15. Rfe1+ {[%emt 0:00:18]} Kd8 {[%emt 0:00:29]} 16. d5 {[%emt 0:00:01]} Bd7 {[%emt 0:00:15]} 17. Nd4 {[%emt 0:00:02]} Re8 {[%emt 0:00:10]} 18. f3 {[%emt 0:00:01]} c5 {[%emt 0:00:01]} 19. Ne6+ {[%emt 0:00:40]} Bxe6 {[%emt 0:00:01]} 20. dxe6 {[%emt 0:00:01]} Kc7 {[%emt 0:00:01]} 21. Rad1 {[%emt 0:00:06]} Kc6 {[%emt 0:00:00]} 22. g4 {[%emt 0:00:31]} g5 {[%emt 0:00:01]} 23. Kf2 {[%emt 0:00:12]} b5 {[%emt 0:00:05]} 24. e7 {[%emt 0:00:15]} b4 {[%emt 0:00:36]} 25. Re6 {[%emt 0:00:21]} bxc3 {[%emt 0:00:02]} 26. Rxf6 {[%emt 0:00:05]} cxb2 {[%emt 0:00:41]} 27. Rfxd6+ {[%emt 0:00:04]} Kc7 {[%emt 0:00:13]} 28. Rd7+ {[%emt 0:00:02]} Kc8 {[%emt 0:00:01]} 29. Rd8+ {[%emt 0:00:10]} Kc7 {[%emt 0:00:01]} 30. R1d7+ {[%emt 0:00:21]} Kc6 {[%emt 0:00:01]} 31. Rd6+ {[%emt 0:00:05]} Kc7 {[%emt 0:00:21]} 32. R6d7+ {[%emt 0:00:02]} Kc6 {[%emt 0:00:00]} 33. Rd6+ {[%emt 0:00:04]} Kb5 {[%emt 0:00:01]} 34. Rxa8 {[%emt 0:00:04]} b1=Q {[%emt 0:00:03]} 35. Rxe8 {[%emt 0:00:04]} Qb2+ {[%emt 0:00:01]} 36. Kf1 {[%emt 0:00:04]} Qc1+ {[%emt 0:00:09]} 37. Kf2 {[%emt 0:00:02]} Qb2+ {[%emt 0:00:01]} 38. Ke1 {[%emt 0:00:03]} Qe5+ {[%emt 0:00:01]} 39. Kf2 {[%emt 0:00:04]} Qxd6 {[%emt 0:00:01]} 40. Kg2 {[%emt 0:00:03]} Ka6 {[%emt 0:00:05]} 41. h4 {[%emt 0:00:02]} gxh4 {[%emt 0:00:02]} 42. f4 {[%emt 0:00:01]} Qc6+ {[%emt 0:00:02]} 0-1